Cogmind - Beta 10.2 @@@ ROGUE MODE // 2021.01.31 @ 19:21:45 Player: Smetak Result: Destroyed by L-31 Rogue with Katana Performance ------------- Evolutions (1) 500 Regions Visited (2) 400 Robots Destroyed (21) 105 Value Destroyed (590) 590 Prototype IDs (0) 0 Alien Tech Used (0) 0 Bonus (0) 0 TOTAL SCORE: 1595 Bonus ------- None Cogmind --------- Core Integrity 0/400 Matter 273/300 Energy 82/100 System Corruption 0% Temperature Cool (0) Movement Walking (120) Location -9/Materials Parts ------- > --- POWER (1) -------- (None) > --- PROPULSION (2) --- Aluminum Leg > --- UTILITY (4) ------ Structural Scanner Sensor Array Signal Interpreter > --- WEAPON (2) ------- Mini Grenade Launcher > --- INVENTORY (4) ---- Autogun Improved Light Cannon Peak State ------------ > --- POWER ------------ Improved Ion Engine > --- PROPULSION ------- Light Treads Improved Aluminum Leg > --- UTILITY ---------- Small Storage Unit Structural Scanner Signal Interpreter Core Shielding > --- WEAPON ----------- Autogun Improved Light Cannon > --- INVENTORY -------- Heat Sink Weight Redist. System Autogun Mini Grenade Launcher Mini Grenade Launcher [Rating: 13] Favorites ----------- Power Improved Ion Engine Engine Improved Ion Engine Propulsion Backup Propulsion I Treads Light Treads Leg Improved Aluminum Leg Hover Unit Backup Propulsion I Utility Small Storage Unit Device Structural Scanner Storage Small Storage Unit Processor Signal Interpreter Protection Core Shielding Weapon Light Assault Rifle Energy Gun Backup Laser I Ballistic Gun Light Assault Rifle Ballistic Cannon Improved Light Cannon Launcher Mini Grenade Launcher Build | -11 -10 -9 ------- Run | Scr Mat Mat Slots Evolved 2 | . . 2 Power . | . . . Propulsion . | . . . Utility 2 | . . 2 Weapon . | . . . Parts Attached 36 | 6 11 19 Power 4 | 1 1 2 Engine 4 | 1 1 2 Core . | . . . Reactor . | . . . Propulsion 6 | 2 . 4 Treads 3 | 2 . 1 Leg 3 | . . 3 Wheel . | . . . Hover . | . . . Flight . | . . . Utility 13 | 1 8 4 Device 6 | . 4 2 Storage 3 | 1 2 . Processor 1 | . . 1 Hackware . | . . . Protection 3 | . 2 1 Artifact . | . . . Weapon 13 | 2 2 9 Energy Gun 3 | 1 . 2 Energy Cannon . | . . . Ballistic Gun 5 | 1 2 2 Ballistic Cannon 2 | . . 2 Launcher 3 | . . 3 Special Weapon . | . . . Impact Weapon . | . . . Slashing Weapon . | . . . Piercing Weapon . | . . . Special Melee Weapon . | . . . Unidentified Prototypes . | . . . Parts Lost 16 | . 5 11 Power 3 | . 2 1 Propulsion 4 | . 1 3 Utility 3 | . . 3 Weapon 6 | . 2 4 Highest Loss Streak 6 | . 4 6 Average Slot Usage (%) 74 | . 75 72 Engine 8 | . 7 8 Treads 2 | . 3 . Leg 4 | . . 9 Hover 6 | . 12 1 Device 9 | . 4 13 Storage 9 | . 13 6 Processor 5 | . . 11 Protection 7 | . 5 8 Energy Gun 5 | . 11 . Ballistic Gun 11 | . 15 8 Ballistic Cannon 2 | . . 4 Naked Turns . | . . . Heaviest Build 17 | 12 12 17 Greatest Support 40 | 40 40 23 Greatest Overweight (x) 5 | . 1 5 Average Overweight (x) 1 | . . 1 Largest Inventory Capacity 6 | 6 6 6 Average Capacity 5 | 5 5 5 Most Carried 6 | 2 6 6 Average Carried 3 | . 3 3 Final Capacity 6 | 6 6 4 Final Carried 6 | . 6 2 Class Distribution -------------------- 90% | Mutant 7% | Skirmisher Dominant Class ---------------- Mutant | -10/Materials Mutant | -9/Materials Resources | -11 -10 -9 ----------- Run | Scr Mat Mat Matter Collected 829 | 239 226 364 Remotely . | . . . Salvage Created 710 | . 154 556 Parts 49 | . 13 36 Haulers Intercepted . | . . . Recyclers Shooed 1 | . . 1 Parts Field Recycled . | . . . Retrieved Matter . | . . . Parts Self-Destructed . | . . . Prevented . | . . . Kills | -11 -10 -9 ------- Run | Scr Mat Mat Combat Hostiles Destroyed 16 | . 5 11 Melee 1 | . . 1 Guns 9 | . 5 4 Cannons 3 | . . 3 AOE 3 | . . 3 Classes Destroyed 6 | . 3 3 Tunneler 2 | . . 2 Recycler 1 | . . 1 Watcher 2 | . 1 1 Swarmer 3 | . 3 . Grunt 10 | . 2 8 Sentry 3 | . . 3 Best Kill Streak 3 | . 2 3 Combat Bots Only 2 | . 2 2 Max Kills in Single Turn 3 | . 1 3 Gunslinging . | . . . Exploded 2 | . . 2 Melee 1 | . . 1 Uniques/NPCs Destroyed . | . . . Combat | -11 -10 -9 -------- Run | Scr Mat Mat Damage Taken 2025 | . 748 1277 Core 577 | . 167 410 Absorbed by Shields . | . . . Core Remaining (%) 66 | 100 33 . Volleys Fired 75 | . 27 48 Largest 2 | . 2 2 Hottest 80 | . 70 80 Shots Fired 117 | . 44 73 Gun 107 | . 44 63 Cannon 7 | . . 7 Launcher 3 | . . 3 Special . | . . . Kinetic 92 | . 30 62 Thermal 22 | . 14 8 Explosive 3 | . . 3 Electromagnetic . | . . . Robot Hit Streak 11 | . 8 11 Robot Miss Streak 4 | . 4 4 Penetration Max . | . . . Secondary Targets . | . . . Shots Hit Robots 79 | . 26 53 Core Hits 39 | . 9 30 Critical Hits . | . . . Critical Kills . | . . . Critical Parts Destroyed . | . . . Melee Attacks . | . . . Impact . | . . . Slashing . | . . . Piercing . | . . . Sneak Attacks . | . . . Combat Hostiles . | . . . Follow-up Attacks . | . . . Damage Inflicted 1212 | . 198 1014 Guns 796 | . 195 601 Cannons 107 | . . 107 Explosions 264 | . . 264 Melee . | . . . Ramming 45 | . 3 42 Kinetic 751 | . 131 620 Thermal 152 | . 64 88 Explosive 264 | . . 264 Electromagnetic . | . . . Impact . | . . . Slashing . | . . . Piercing . | . . . Highest Corruption 3 | . 3 . Average Corruption 1 | . 1 . Corruption Purged . | . . . Effects 2 | . 2 . Matter Fused 2 | . 2 . Overload Shots . | . . . Overflow Damage 10 | . . 10 Projectiles . | . . . Explosions 10 | . . 10 Melee . | . . . Knockbacks 1 | . 1 . Impact 1 | . 1 . Kinetic . | . . . Secondary . | . . . Self-Inflicted Damage 54 | . 1 53 Shots 1 | . . 1 Rammed 17 | . 5 12 Targets Rammed 18 | . 5 13 Kicked 1 | . . 1 Crushed . | . . . Highest Temperature 80 | . 80 43 Average Temperature 13 | . 20 8 Received Heat Transfer 549 | . 60 489 Siege Activations . | . . . Robots Corrupted . | . . . Combat Hostiles . | . . . Parts Fried . | . . . Impact Corruptions . | . . . Robots Melted . | . . . Combat Hostiles . | . . . Parts Melted 1 | . . 1 Heat Transferred 422 | . 222 200 Parts Sabotaged . | . . . Parts Stolen . | . . . Parts Stripped . | . . . Power Chain Reactions . | . . . Missiles Intercepted . | . . . Alert | -11 -10 -9 ------- Run | Scr Mat Mat Peak Influence 170 | . 107 170 Initial . | . . . Average 49 | . 55 52 Maximum Alert Level . | . . . Low Security (%) 100 | 100 100 100 Level 1 . | . . . Level 2 . | . . . Level 3 . | . . . Level 4 . | . . . Level 5 . | . . . High Security . | . . . Max Security . | . . . Squads Dispatched 6 | . 4 2 Investigation 2 | . 2 . Extermination . | . . . Reinforcement 4 | . 2 2 Assault . | . . . Garrison . | . . . Intercept . | . . . Construction Impeded . | . . . Haulers Reinforced . | . . . Stealth | -11 -10 -9 --------- Run | Scr Mat Mat Distress Signals 2 | . 1 1 Communications Jammed . | . . . Distress Signals . | . . . Times Spotted 37 | . 17 20 Peak Tracking Total 5 | . 5 5 Tactical Retreats 8 | . 6 2 Traps | -11 -10 -9 ------- Run | Scr Mat Mat Traps Triggered 4 | . 4 . Indirectly . | . . . Trap Hack Attempts . | . . . Triggered . | . . . Disarmed . | . . . Reprogrammed . | . . . Reused . | . . . Traps Extracted . | . . . Installed . | . . . Triggered . | . . . Machines | -11 -10 -9 ---------- Run | Scr Mat Mat Machines Disabled 2 | . . 2 Max in Single Turn 1 | . . 1 Machines Sabotaged . | . . . Garrisons Compromised . | . . . Overloaded Fab Kills . | . . . Fab Network Shutdowns . | . . . Hacking | -11 -10 -9 --------- Run | Scr Mat Mat Machines Accessed 2 | . 2 . Terminals 1 | . 1 . Fabricators . | . . . Repair Stations 1 | . 1 . Recycling Units . | . . . Scanalyzers . | . . . Garrison Access . | . . . Total Hacks 2 | . 2 . Successful 2 | . 2 . Failed . | . . . Catastrophic . | . . . Database Lockouts . | . . . Manual . | . . . Terminals 1 | . 1 . Fabricators . | . . . Repair Stations 1 | . 1 . Recycling Units . | . . . Scanalyzers . | . . . Garrison Access . | . . . Terminal Hacks 1 | . 1 . Alert Level 1 | . 1 . Fabricator Hacks . | . . . Repair Station Hacks 1 | . 1 . Refit 1 | . 1 . Recycling Unit Hacks . | . . . Scanalyzer . | . . . Garrison Access Hacks . | . . . Unauthorized Hacks . | . . . Terminals . | . . . Fabricators . | . . . Repair Stations . | . . . Recycling Units . | . . . Scanalyzers . | . . . Garrison Access . | . . . Data Cores Recovered . | . . . Used . | . . . Hacking Detections . | . . . Full Trace Events . | . . . Feedback Events . | . . . Feedback Blocked . | . . . Robot Schematics Acquired . | . . . Robots Built . | . . . Matter . | . . . Time . | . . . Total Robot Build Rating . | . . . Part Schematics Acquired . | . . . Parts Built . | . . . Matter . | . . . Time . | . . . Total Part Build Rating . | . . . Parts Repaired . | . . . Time . | . . . Parts Recycled . | . . . Recycled Matter . | . . . Retrieved Matter . | . . . Retrieved Components . | . . . Parts Scanalyzed . | . . . Part Schematics Acquired . | . . . Parts Damaged . | . . . Bothacking | -11 -10 -9 ------------ Run | Scr Mat Mat Used RIF Installer . | . . . Robots Hacked . | . . . Non-combat . | . . . Combat . | . . . Robot Hacks Applied . | . . . Relay Couplers Released . | . . . Robots Rewired . | . . . Allies Hacked . | . . . Hacks Repelled . | . . . Allies | -11 -10 -9 -------- Run | Scr Mat Mat Total Allies . | . . . Largest Group . | . . . Highest-Rated Group . | . . . Highest-Rated Ally . | . . . Total Orders . | . . . Ally Attacks . | . . . Total Damage . | . . . Kills . | . . . Allies Corrupted . | . . . Allies Melted . | . . . Intel | -11 -10 -9 ------- Run | Scr Mat Mat Robot Analysis Total . | . . . Derelict Logs Recovered . | . . . Drone Launches . | . . . Drone Recoveries . | . . . Exploration | -11 -10 -9 ------------- Run | Scr Mat Mat Turns Passed 2108 | 163 887 1058 Spaces Moved 1122 | 100 482 540 Core 181 | 11 . 170 Treads 170 | 89 52 29 Legs 274 | . . 274 Wheels . | . . . Hover 497 | . 430 67 Flight . | . . . Fastest Speed 50 | 50 100 100 Average Speed 160 | 147 159 163 Slowest Speed 300 | 160 180 300 Overloaded Moves . | . . . Propulsion Burnouts . | . . . Robots Hopped . | . . . Cave-ins Triggered . | . . . Exploration Rate (%) 33 | 7 65 29 Regions Visited 2 Branch Regions . Pre-discovered Areas . | . . . Known Exits Taken . | . . . Unknown Exits Taken 2 | 1 1 . Scrap Searched . | . . . Spaces Dug . | . . . Terrain Destroyed 33 | . . 33 Melee . | . . . Projectile . | . . . AOE 33 | . . 33 Terrain Rammed . | . . . Walls Destroyed . | . . . Machines Disabled . | . . . Actions | -11 -10 -9 --------- Run | Scr Mat Mat Total 1336 | 116 566 654 Wait 8 | 3 4 1 Move 1120 | 99 481 540 Hop . | . . . Pick Up 43 | 7 18 18 Fast Attach . | . . . Attach 36 | 6 11 19 Detach 14 | . 8 6 Swap . | . . . Drop 22 | 1 12 9 Fire 75 | . 27 48 Melee . | . . . Ram 5 | . 1 4 Kick 9 | . . 9 Crush 4 | . 4 . Escape Stasis . | . . . Rewire . | . . . Trap . | . . . Miscellaneous . | . . . Route ------- -11/Scrapyard -10/Materials (discovered 3 exits: *Mat / [*Min x2]) -9/Materials History --------- Turn | Location | Event 47 | -11/Scrapyard | Discovered new exit (range 15) 164 | -11/Scrapyard | Entered Materials 247 | -10/Materials | Discovered new exit (range 16) 278 | -10/Materials | Core integrity fell below 50% 303 | -10/Materials | Lost 4 parts (1p1n2w) 330 | -10/Materials | Build established: Mutant 987 | -10/Materials | Discovered new exit (range 4) 1045 | -10/Materials | Discovered new exit (range 5) 1051 | -10/Materials | Entered another Materials area 1051 | -9/Materials | Evolved 2 slots: Utility x2 1240 | -9/Materials | Lost 6 parts (1n1u4w) 1259 | -9/Materials | Core integrity fell below 50% 2097 | -9/Materials | Core integrity fell below 20% 2109 | -9/Materials | Destroyed by L-31 Rogue with Katana Last Messages --------------- 02097_ T-07 Excavator destroyed. 02097_ R-06 Scavenger destroyed. 02097_ K-01 Serf collects debris. 02098_ U-05 Engineer builds a Wall. 02099_ K-01 Serf collects debris. 02100_ Kicked L-31 Rogue out of the way. 02101_ Imp. Aluminum Leg destroyed. 02101_ Slammed into L-31 Rogue. 02102_ K-01 Serf collects debris. 02102_ U-05 Engineer builds a Door. 02102_ R-06 Scavenger collects Ion Engine. 02104_ Slammed into L-31 Rogue. 02104_ Destabilizing: Core damaged (-12). 02105_ Slammed into L-31 Rogue. 02106_ Mni. Grenade Launcher severed. 02106_ R-06 Scavenger collects Sml. Laser. 02107_ K-01 Serf collects debris. 02108_ Slammed into L-31 Rogue. 02108_ Sensor Array permanently disabled. 02108_ Destabilizing: Short circuit. Map ----- +----------------------------------------------------+ | | | ?????????????????????????????????????????????????? | | ?????????????????????????????????????????????????? | | ?????????????????????????????????????????????????? | | ?????????????????????????????????????????????????? | | ?????????????????????????????????????????????????? | | ?????????????????????????????????????????????????? | | ?????????????????????????????????????????????????? | | ?????????????????????????????????????????????????? | | ?????????????????????????????????????????????????? | | ?????????????????????????????????????????????????? | | ????????????????????? ???????????????????????????? | | ????????????????????# ???????????????????????????? | | ????????????????????# ???????????????????????????? | | ????????????????????# ??????????????????????????? | | ????????????????????# ??????????????????????????? | | ????????????????????# ??????????????????????????? | | ?????????????######## ????????????? ####???????? | | ?????????????# # ?????##????? ??????? | | ?????????????# # ?#### ##?? ??????? | | ##???????????# # ## ## ???????? | | ############# # %= # ??????? | | [# + # | + ??????? | | # # # ]= % ""???????? | | # ####+####### [ # # ""???????? | | +% % +% @l% ### ### ??????? | | "# ########+#####+##### k #????????????????? | | "# #??????# #?# #????????????????? | | "# ######## #?# k##???????????????? | | # #=[ # """"""" #?# % #???????????????? | | ## # # """"""" #?# "" ##???????????????? | | ?# # # """"""" #?# "" "" #????????????????? | | ?# # # """""" #?# """"" #????????????????? | | ?# # [= #* """""" #?###########????????????????? | | ?# # [ # #????????????????????????????? | | ?# ######+#######+###????????????????????????????? | | ?# ! #????????????????????????????? | | ?# #????????????????????????????? | | ?# !! #????????????????????????????? | | ?# !! #????????????????????????????? | | ?### [ ! #????????????????????????????? | | ???# ### [ #????????????????????????????? | | ???# #?# #????????????????????????????? | | ???# #?# """ """ #????????????????????????????? | | ####+### """ """ #????????????????????????????? | | # # """ """ ######???????????????????????? | | # # ????????????????????? | | # !! + ????????????????????? | | # !! # ### ????????????????????? | | # !% # #?###+### #####?????????????????????? | +----------------------------------------------------+ Best States ------------- Heat Dissipation 28 Energy Generation 12 Energy Capacity 265 Matter Stores 300 Matter Capacity 300 Sight Range 16 Robot Scan Range 10 Terrain Scan Density 10 Core Shielding 20 Evasion (%) 45 Recoil Reduction 2 Item Schematics ----------------- None Robot Schematics ------------------ None Fabricated ------------ Nothing Alien Tech Used ----------------- None Achievements -------------- Fist Fight Challenges ------------ None Game ------ Seed AutogunFlightProtection Manual? 0 Play Time 00:31:48 Cumulative 3.5 hours Start 2021.01.31 @ 18:41:56 End 2021.01.31 @ 19:21:45 Sessions 1 Manual Loads 0 Difficulty Rogue Special Mode None Game No. 8 Rogue 8 Adventurer 0 Explorer 0 Win Type - Total 0 Types 0/0/0/0/0/0/0/0/0 Lore% 0 Gallery% 8 Achievement% 4 Wizard Run 0 Options --------- ASCII 0 Keyboard 1 Movement Numpad Keybinds 0 Fullscreen 2 Font 16/Terminus Map View 76x50 Tactical HUD 1 Map Filters NONE Filters NONE Steam 1 RUN: f086ea2e-92fe-4349-87dd-68d782c40a3e